[Event "MČR juniorů a juniorek v rapid šachu 2023"]
[Site "Czech Republic"]
[Date "2023.09.24"]
[Round "9.24"]
[White "Pejrimovska, Viola Ruby"]
[Black "Pistej, Tomas"]
[Result "1-0"]
[TimeControl "20 min + 5 sec per move"]
[WhiteFideId "23709529"]
[BlackFideId "23750740"]
[WhiteElo "1581"]
[BlackElo "1640"]

1. e4 {[%clk 00:20:09]} {[%emt 00:00:02]} e5 {[%clk 00:20:08]} {[%emt
00:00:02]} 2. Nf3 {[%clk 00:20:10]} {[%emt 00:00:04]} Nc6 {[%clk 00:20:10]}
{[%emt 00:00:03]} 3. d4 {[%clk 00:20:13]} {[%emt 00:00:01]} exd4 {[%clk
00:20:10]} {[%emt 00:00:05]} 4. Nxd4 {[%clk 00:20:17]} {[%emt 00:00:02]} Nf6
{[%clk 00:19:53]} {[%emt 00:00:22]} 5. Nxc6 {[%clk 00:20:17]} {[%emt 00:00:05]}
bxc6 {[%clk 00:19:53]} {[%emt 00:00:05]} 6. e5 {[%clk 00:20:20]} {[%emt
00:00:02]} Nd5 {[%clk 00:19:44]} {[%emt 00:00:14]} 7. c4 {[%clk 00:20:22]}
{[%emt 00:00:03]} Nb6 {[%clk 00:19:27]} {[%emt 00:00:21]} 8. a3 {[%clk
00:18:33]} {[%emt 00:01:54]} Ba6 {[%clk 00:18:28]} {[%emt 00:01:04]} 9. b3
{[%clk 00:18:36]} {[%emt 00:00:02]} d5 {[%clk 00:18:06]} {[%emt 00:00:27]} 10.
exd6 {[%clk 00:16:18]} {[%emt 00:02:23]} cxd6 {[%clk 00:17:29]} {[%emt
00:00:41]} 11. Bb2 {[%clk 00:11:04]} {[%emt 00:05:20]} Qg5 {[%clk 00:15:14]}
{[%emt 00:02:20]} 12. g3 {[%clk 00:10:11]} {[%emt 00:00:58]} Be7 {[%clk
00:12:58]} {[%emt 00:02:20]} 13. Bg2 {[%clk 00:09:28]} {[%emt 00:00:48]} d5
{[%clk 00:12:22]} {[%emt 00:00:42]} 14. O-O {[%clk 00:08:56]} {[%emt 00:00:37]}
O-O {[%clk 00:12:07]} {[%emt 00:00:20]} 15. Re1 {[%clk 00:07:42]} {[%emt
00:01:19]} Bf6 {[%clk 00:10:35]} {[%emt 00:01:36]} 16. Nc3 {[%clk 00:06:50]}
{[%emt 00:00:57]} Rad8 {[%clk 00:09:48]} {[%emt 00:00:52]} 17. Qc2 {[%clk
00:05:11]} {[%emt 00:01:45]} dxc4 {[%clk 00:08:26]} {[%emt 00:01:27]} 18. Ne4
{[%clk 00:05:10]} {[%emt 00:00:06]} Qh6 {[%clk 00:05:22]} {[%emt 00:03:09]} 19.
Nxf6+ {[%clk 00:04:12]} {[%emt 00:01:03]} gxf6 {[%clk 00:05:21]} {[%emt
00:00:06]} 20. Re4 {[%clk 00:02:35]} {[%emt 00:01:42]} cxb3 {[%clk 00:02:38]}
{[%emt 00:02:48]} 21. Rg4+ {[%clk 00:01:04]} {[%emt 00:01:36]} Kh8 {[%clk
00:02:32]} {[%emt 00:00:10]} 22. Qf5 {[%clk 00:00:41]} {[%emt 00:00:29]} Rd6
{[%clk 00:01:33]} {[%emt 00:01:04]} 23. Be4 {[%clk 00:00:44]} {[%emt 00:00:02]}
Bc8 {[%clk 00:00:48]} {[%emt 00:00:50]} 24. Qf4 {[%clk 00:00:19]} {[%emt
00:00:30]} Qxf4 {[%clk 00:00:36]} {[%emt 00:00:17]} 25. Rxf4 {[%clk 00:00:18]}
{[%emt 00:00:06]} Nd7 {[%clk 00:00:18]} {[%emt 00:00:23]} 26. Rh4 {[%clk
00:00:09]} {[%emt 00:00:14]} Ne5 {[%clk 00:00:08]} {[%emt 00:00:15]} 27. Rxh7+
{[%clk 00:00:09]} {[%emt 00:00:05]} Kg8 {[%clk 00:00:10]} {[%emt 00:00:02]} 28.
Bxe5 {[%clk 00:00:11]} {[%emt 00:00:04]} fxe5 {[%clk 00:00:11]} {[%emt
00:00:04]} 29. Rh5 {[%clk 00:00:09]} {[%emt 00:00:06]} f6 {[%clk 00:00:12]}
{[%emt 00:00:04]} 30. Rb1 {[%clk 00:00:09]} {[%emt 00:00:06]} Be6 {[%clk
00:00:13]} {[%emt 00:00:03]} 31. f4 {[%clk 00:00:08]} {[%emt 00:00:06]} Rb8
{[%clk 00:00:15]} {[%emt 00:00:03]} 32. fxe5 {[%clk 00:00:10]} {[%emt
00:00:03]} fxe5 {[%clk 00:00:14]} {[%emt 00:00:05]} 33. Rxe5 {[%clk 00:00:13]}
{[%emt 00:00:02]} b2 {[%clk 00:00:10]} {[%emt 00:00:09]} 34. Rg5+ {[%clk
00:00:10]} {[%emt 00:00:08]} Kf7 {[%clk 00:00:12]} {[%emt 00:00:03]} 35. Rf1+
{[%clk 00:00:13]} {[%emt 00:00:01]} Ke7 {[%clk 00:00:13]} {[%emt 00:00:04]} 36.
Rg7+ {[%clk 00:00:16]} {[%emt 00:00:03]} Kd8 {[%clk 00:00:16]} {[%emt
00:00:03]} 37. Rf8# {[%clk 00:00:18]} {[%emt 00:00:02]} 1-0

[Event "MČR juniorů a juniorek v rapid šachu 2023"]
[Site "Czech Republic"]
[Date "2023.09.24"]
[Round "9.25"]
[White "Housa, Vojtech"]
[Black "Havelkova, Beata"]
[Result "0-1"]
[TimeControl "20 min + 5 sec per move"]
[WhiteFideId "23736364"]
[BlackFideId "23709405"]
[WhiteElo "1539"]
[BlackElo "1494"]

1. b3 {[%clk 00:20:08]} {[%emt 00:00:02]} Nf6 {[%clk 00:20:06]} {[%emt
00:00:04]} 2. Bb2 {[%clk 00:20:12]} g6 {[%clk 00:20:06]} {[%emt 00:00:05]} 3.
e3 {[%clk 00:20:15]} {[%emt 00:00:01]} Bg7 {[%clk 00:20:10]} {[%emt 00:00:01]}
4. f4 {[%clk 00:20:19]} {[%emt 00:00:02]} d5 {[%clk 00:19:44]} {[%emt
00:00:31]} 5. Nf3 {[%clk 00:20:19]} {[%emt 00:00:05]} Bf5 {[%clk 00:19:13]}
{[%emt 00:00:35]} 6. a4 {[%clk 00:20:06]} {[%emt 00:00:18]} a6 {[%clk
00:19:00]} {[%emt 00:00:19]} 7. Be2 {[%clk 00:20:02]} {[%emt 00:00:09]} Nc6
{[%clk 00:19:03]} {[%emt 00:00:02]} 8. Nh4 {[%clk 00:19:17]} {[%emt 00:00:50]}
Bd7 {[%clk 00:18:11]} {[%emt 00:00:53]} 9. O-O {[%clk 00:19:06]} {[%emt
00:00:19]} e5 {[%clk 00:17:30]} {[%emt 00:00:47]} 10. fxe5 {[%clk 00:18:15]}
{[%emt 00:00:56]} Ne4 {[%clk 00:16:41]} {[%emt 00:00:54]} 11. Nf3 {[%clk
00:17:33]} {[%emt 00:00:46]} Ng5 {[%clk 00:16:27]} {[%emt 00:00:19]} 12. Nc3
{[%clk 00:14:36]} {[%emt 00:03:03]} Nxe5 {[%clk 00:16:01]} {[%emt 00:00:31]} 13.
Nxg5 {[%clk 00:12:54]} {[%emt 00:01:47]} Qxg5 {[%clk 00:16:00]} {[%emt
00:00:05]} 14. Nxd5 {[%clk 00:11:57]} {[%emt 00:01:02]} O-O-O {[%clk 00:13:45]}
{[%emt 00:02:20]} 15. Rb1 {[%clk 00:10:38]} {[%emt 00:01:25]} Bc6 {[%clk
00:12:28]} {[%emt 00:01:22]} 16. Nf4 {[%clk 00:09:38]} {[%emt 00:01:05]} h5
{[%clk 00:12:12]} {[%emt 00:00:21]} 17. g3 {[%clk 00:07:54]} {[%emt 00:01:46]}
h4 {[%clk 00:11:37]} {[%emt 00:00:43]} 18. g4 {[%clk 00:05:18]} {[%emt
00:02:41]} h3 {[%clk 00:11:32]} {[%emt 00:00:10]} 19. Nd3 {[%clk 00:04:07]}
{[%emt 00:01:17]} Rxd3 {[%clk 00:09:31]} {[%emt 00:02:06]} 20. cxd3 {[%clk
00:02:58]} {[%emt 00:01:14]} Rh4 {[%clk 00:08:16]} {[%emt 00:01:20]} 21. Bxe5
{[%emt 00:00:49]} Bxe5 {[%clk 00:08:11]} {[%emt 00:00:06]} 22. Rxf7 {[%emt
00:01:11]} Bd6 {[%emt 00:01:36]} 23. Rf2 {[%emt 00:01:26]} Bg2 {[%clk
00:05:49]} {[%emt 00:00:17]} 24. b4 {[%emt 00:00:52]} Qe5 {[%clk 00:05:09]}
{[%emt 00:00:05]} 25. Rf4 {[%clk 00:00:26]} g5 {[%clk 00:04:48]} {[%emt
00:00:29]} 26. d4 {[%clk 00:00:30]} Qe6 {[%clk 00:04:23]} {[%emt 00:00:30]} 27.
Rf5 {[%clk 00:00:18]} {[%emt 00:00:16]} Be4 {[%clk 00:04:08]} {[%emt 00:00:21]}
28. Rxg5 {[%clk 00:00:00]} {[%emt 00:00:21]} 0-1

[Event "MČR juniorů a juniorek v rapid šachu 2023"]
[Site "Czech Republic"]
[Date "2023.09.24"]
[Round "9.26"]
[White "Beran, Jakub"]
[Black "Stara, Zuzana"]
[Result "1-0"]
[TimeControl "20 min + 5 sec per move"]
[WhiteFideId "23727071"]
[BlackFideId "23733543"]
[WhiteElo "1645"]
[BlackElo "1377"]

1. c4 {[%clk 00:20:08]} {[%emt 00:00:01]} e6 {[%clk 00:20:08]} {[%emt
00:00:03]} 2. Nc3 {[%clk 00:20:11]} {[%emt 00:00:02]} d5 {[%clk 00:20:09]}
{[%emt 00:00:04]} 3. cxd5 {[%clk 00:20:14]} {[%emt 00:00:02]} exd5 {[%clk
00:20:13]} 4. d4 {[%clk 00:20:18]} Nf6 {[%clk 00:20:14]} {[%emt 00:00:03]} 5.
Bg5 {[%clk 00:20:13]} {[%emt 00:00:10]} Be7 {[%clk 00:20:10]} {[%emt 00:00:10]}
6. Nf3 {[%clk 00:20:10]} {[%emt 00:00:07]} Nbd7 {[%clk 00:19:59]} {[%emt
00:00:17]} 7. e3 {[%clk 00:20:09]} {[%emt 00:00:06]} O-O {[%clk 00:19:58]}
{[%emt 00:00:06]} 8. Bd3 {[%clk 00:20:00]} {[%emt 00:00:13]} c5 {[%clk
00:19:02]} {[%emt 00:01:00]} 9. dxc5 {[%clk 00:19:59]} {[%emt 00:00:07]} Nxc5
{[%clk 00:18:12]} {[%emt 00:00:55]} 10. h3 {[%clk 00:19:55]} {[%emt 00:00:08]}
Be6 {[%clk 00:17:55]} {[%emt 00:00:23]} 11. O-O {[%clk 00:19:55]} {[%emt
00:00:05]} Rc8 {[%clk 00:15:58]} {[%emt 00:02:02]} 12. Rc1 {[%clk 00:19:16]}
{[%emt 00:00:44]} a6 {[%clk 00:14:09]} {[%emt 00:01:54]} 13. a3 {[%clk
00:18:32]} {[%emt 00:00:49]} b5 {[%clk 00:13:08]} {[%emt 00:01:06]} 14. b4
{[%clk 00:18:09]} {[%emt 00:00:27]} Nb7 {[%clk 00:13:09]} {[%emt 00:00:03]} 15.
Nd4 {[%clk 00:17:32]} {[%emt 00:00:43]} Nd6 {[%clk 00:12:39]} {[%emt 00:00:34]}
16. a4 {[%clk 00:15:59]} {[%emt 00:01:38]} a5 {[%clk 00:09:00]} {[%emt
00:03:44]} 17. bxa5 {[%clk 00:14:35]} {[%emt 00:01:29]} b4 {[%clk 00:08:37]}
{[%emt 00:00:28]} 18. Ncb5 {[%clk 00:14:36]} {[%emt 00:00:05]} Nc4 {[%clk
00:06:02]} {[%emt 00:02:39]} 19. a6 {[%clk 00:12:46]} {[%emt 00:01:56]} Qb6
{[%clk 00:04:48]} {[%emt 00:01:16]} 20. a7 {[%clk 00:12:03]} {[%emt 00:00:49]}
Bd7 {[%clk 00:03:13]} {[%emt 00:01:40]} 21. Rb1 {[%clk 00:08:24]} {[%emt
00:03:42]} Ra8 {[%clk 00:02:11]} {[%emt 00:01:09]} 22. Qe2 {[%clk 00:07:26]}
{[%emt 00:00:59]} Rfc8 {[%clk 00:01:58]} {[%emt 00:00:23]} 23. Rfc1 {[%clk
00:07:11]} {[%emt 00:00:20]} Ne5 {[%clk 00:01:19]} {[%emt 00:00:43]} 24. e4
{[%clk 00:03:00]} {[%emt 00:04:16]} Nxd3 {[%clk 00:00:58]} {[%emt 00:00:26]} 25.
Qxd3 {[%clk 00:03:00]} {[%emt 00:00:05]} dxe4 {[%clk 00:00:48]} {[%emt
00:00:15]} 26. Qe2 {[%clk 00:02:40]} {[%emt 00:00:22]} Nd5 {[%clk 00:00:20]}
{[%emt 00:00:36]} 27. Bxe7 {[%clk 00:02:31]} {[%emt 00:00:13]} Nxe7 {[%clk
00:00:23]} {[%emt 00:00:02]} 28. Qxe4 {[%clk 00:02:32]} {[%emt 00:00:04]} Ng6
{[%clk 00:00:16]} {[%emt 00:00:12]} 29. Rxc8+ {[%clk 00:02:32]} {[%emt
00:00:05]} Rxc8 {[%clk 00:00:09]} {[%emt 00:00:12]} 30. a8=Q {[%clk 00:02:33]}
{[%emt 00:00:04]} 1-0

[Event "MČR juniorů a juniorek v rapid šachu 2023"]
[Site "Czech Republic"]
[Date "2023.09.24"]
[Round "9.27"]
[White "Boff, Ondrej"]
[Black "Nikolinko, Tomas"]
[Result "1-0"]
[TimeControl "20 min + 5 sec per move"]
[WhiteFideId "23733950"]
[BlackFideId "389749"]
[WhiteElo "1486"]
[BlackElo "1327"]

1. e4 {[%clk 00:20:07]} {[%emt 00:00:02]} c5 {[%clk 00:20:09]} {[%emt
00:00:02]} 2. Nf3 {[%clk 00:20:10]} {[%emt 00:00:02]} Nc6 {[%clk 00:20:12]}
{[%emt 00:00:02]} 3. Bb5 {[%clk 00:20:14]} {[%emt 00:00:01]} Nf6 {[%clk
00:20:05]} {[%emt 00:00:13]} 4. Nc3 {[%clk 00:19:10]} {[%emt 00:01:09]} d5
{[%clk 00:19:45]} {[%emt 00:00:24]} 5. exd5 {[%clk 00:19:01]} {[%emt 00:00:14]}
Nxd5 {[%clk 00:19:48]} {[%emt 00:00:02]} 6. Bxc6+ {[%clk 00:18:57]} {[%emt
00:00:10]} bxc6 {[%clk 00:19:49]} {[%emt 00:00:03]} 7. O-O {[%clk 00:18:59]}
{[%emt 00:00:02]} Ba6 {[%clk 00:19:36]} {[%emt 00:00:19]} 8. d3 {[%clk
00:18:59]} {[%emt 00:00:05]} g6 {[%clk 00:19:37]} {[%emt 00:00:04]} 9. Re1
{[%clk 00:18:38]} {[%emt 00:00:26]} Bg7 {[%clk 00:19:30]} {[%emt 00:00:13]} 10.
Ne4 {[%clk 00:18:15]} {[%emt 00:00:27]} c4 {[%clk 00:19:11]} {[%emt 00:00:24]}
11. d4 {[%clk 00:18:05]} {[%emt 00:00:15]} O-O {[%clk 00:19:03]} {[%emt
00:00:13]} 12. c3 {[%clk 00:18:04]} {[%emt 00:00:06]} f5 {[%clk 00:18:25]}
{[%emt 00:00:44]} 13. Nc5 {[%clk 00:18:03]} {[%emt 00:00:06]} Bc8 {[%clk
00:18:25]} {[%emt 00:00:04]} 14. Ng5 {[%clk 00:17:51]} {[%emt 00:00:17]} Re8
{[%clk 00:17:07]} {[%emt 00:01:23]} 15. Nge6 {[%clk 00:17:47]} {[%emt
00:00:09]} Bxe6 {[%clk 00:17:05]} {[%emt 00:00:08]} 16. Nxe6 {[%clk 00:17:49]}
{[%emt 00:00:02]} Qd6 {[%clk 00:16:37]} {[%emt 00:00:33]} 17. Bg5 {[%clk
00:17:04]} {[%emt 00:00:47]} h6 {[%clk 00:16:32]} {[%emt 00:00:13]} 18. Bd2
{[%clk 00:17:02]} {[%emt 00:00:07]} Rab8 {[%clk 00:16:22]} {[%emt 00:00:16]} 19.
Rb1 {[%clk 00:16:56]} {[%emt 00:00:11]} g5 {[%clk 00:16:10]} {[%emt 00:00:16]}
20. Qh5 {[%clk 00:16:27]} {[%emt 00:00:34]} Nc7 {[%clk 00:15:49]} {[%emt
00:00:27]} 21. Qg6 {[%clk 00:15:02]} {[%emt 00:01:30]} Nxe6 {[%clk 00:15:29]}
{[%emt 00:00:25]} 22. Rxe6 {[%clk 00:14:49]} {[%emt 00:00:17]} Qd5 {[%clk
00:15:02]} {[%emt 00:00:34]} 23. h4 {[%clk 00:14:16]} {[%emt 00:00:37]} f4
{[%clk 00:13:54]} {[%emt 00:01:13]} 24. hxg5 {[%clk 00:14:06]} {[%emt
00:00:15]} Qxg5 {[%clk 00:13:53]} {[%emt 00:00:06]} 25. Qxg5 {[%clk 00:14:08]}
{[%emt 00:00:03]} hxg5 {[%clk 00:13:54]} {[%emt 00:00:04]} 26. Rxc6 {[%clk
00:14:10]} {[%emt 00:00:03]} Rec8 {[%clk 00:13:39]} {[%emt 00:00:21]} 27. Rxc8+
{[%clk 00:13:56]} {[%emt 00:00:19]} Rxc8 {[%clk 00:13:39]} {[%emt 00:00:04]} 28.
b3 {[%clk 00:13:58]} {[%emt 00:00:03]} cxb3 {[%clk 00:13:37]} {[%emt 00:00:08]}
29. axb3 {[%clk 00:13:57]} {[%emt 00:00:05]} Kf7 {[%clk 00:13:33]} {[%emt
00:00:08]} 30. Kf1 {[%clk 00:14:01]} {[%emt 00:00:02]} e5 {[%clk 00:13:17]}
{[%emt 00:00:22]} 31. d5 {[%clk 00:13:03]} {[%emt 00:01:03]} e4 {[%clk
00:13:16]} {[%emt 00:00:06]} 32. c4 {[%clk 00:13:05]} {[%emt 00:00:02]} Rb8
{[%clk 00:12:43]} {[%emt 00:00:38]} 33. b4 {[%clk 00:12:59]} {[%emt 00:00:11]}
a5 {[%clk 00:12:26]} {[%emt 00:00:22]} 34. b5 {[%clk 00:12:53]} {[%emt
00:00:11]} a4 {[%clk 00:12:21]} {[%emt 00:00:11]} 35. Bb4 {[%clk 00:12:24]}
{[%emt 00:00:34]} Bd4 {[%clk 00:11:43]} {[%emt 00:00:43]} 36. Ba3 {[%clk
00:12:07]} {[%emt 00:00:22]} Rc8 {[%clk 00:11:36]} {[%emt 00:00:11]} 37. Rb4
{[%clk 00:11:40]} {[%emt 00:00:31]} Bc5 {[%clk 00:11:38]} {[%emt 00:00:04]} 38.
Rxa4 {[%clk 00:11:43]} {[%emt 00:00:02]} Bxa3 {[%clk 00:11:40]} {[%emt
00:00:03]} 39. Rxa3 {[%clk 00:11:46]} {[%emt 00:00:02]} Rxc4 {[%clk 00:11:42]}
{[%emt 00:00:03]} 40. Rb3 {[%clk 00:11:44]} {[%emt 00:00:08]} Rc8 {[%clk
00:11:29]} {[%emt 00:00:18]} 41. b6 {[%clk 00:11:44]} {[%emt 00:00:05]} Rb8
{[%clk 00:11:30]} {[%emt 00:00:04]} 42. Ke2 {[%clk 00:11:46]} {[%emt 00:00:02]}
Ke7 {[%clk 00:11:33]} {[%emt 00:00:03]} 43. Kd2 {[%clk 00:11:45]} {[%emt
00:00:06]} Kd6 {[%clk 00:11:36]} {[%emt 00:00:02]} 44. Rb5 {[%clk 00:11:47]}
{[%emt 00:00:02]} g4 {[%clk 00:11:26]} {[%emt 00:00:16]} 45. g3 {[%clk
00:11:27]} {[%emt 00:00:24]} fxg3 {[%clk 00:10:50]} {[%emt 00:00:41]} 46. fxg3
{[%clk 00:11:28]} {[%emt 00:00:03]} Rb7 {[%clk 00:10:20]} {[%emt 00:00:36]} 47.
Ke2 {[%clk 00:11:16]} {[%emt 00:00:16]} Ke5 {[%clk 00:10:07]} {[%emt 00:00:19]}
48. Ke3 {[%clk 00:11:19]} {[%emt 00:00:02]} Rb8 {[%clk 00:10:01]} {[%emt
00:00:11]} 49. b7 {[%clk 00:11:23]} {[%emt 00:00:01]} Kd6 {[%clk 00:10:00]}
{[%emt 00:00:06]} 50. Kxe4 {[%clk 00:11:26]} {[%emt 00:00:02]} Kc7 {[%clk
00:10:03]} {[%emt 00:00:02]} 51. Ke5 {[%clk 00:11:27]} {[%emt 00:00:03]} Kd7
{[%clk 00:09:52]} {[%emt 00:00:16]} 52. Kf5 {[%clk 00:11:28]} {[%emt 00:00:03]}
Kc7 {[%clk 00:09:55]} {[%emt 00:00:04]} 53. Kxg4 {[%clk 00:11:30]} {[%emt
00:00:02]} Rxb7 {[%clk 00:09:58]} {[%emt 00:00:02]} 54. Rxb7+ {[%clk 00:11:34]}
{[%emt 00:00:02]} Kxb7 {[%clk 00:10:01]} {[%emt 00:00:02]} 55. Kf5 {[%clk
00:11:38]} {[%emt 00:00:01]} 1-0

[Event "MČR juniorů a juniorek v rapid šachu 2023"]
[Site "Czech Republic"]
[Date "2023.09.24"]
[Round "9.28"]
[White "Dudkova, Josefina"]
[Black "Tvaroh, Vitezslav"]
[Result "0-1"]
[TimeControl "20 min + 5 sec per move"]
[WhiteFideId "23712350"]
[BlackFideId "23704209"]
[WhiteElo "1437"]
[BlackElo "1303"]

1. d4 {[%clk 00:20:08]} {[%emt 00:00:02]} Nf6 {[%clk 00:20:07]} {[%emt
00:00:03]} 2. Bf4 {[%clk 00:20:11]} {[%emt 00:00:02]} e6 {[%clk 00:19:52]}
{[%emt 00:00:20]} 3. e3 {[%clk 00:20:09]} {[%emt 00:00:07]} c5 {[%clk
00:19:32]} {[%emt 00:00:25]} 4. c3 {[%clk 00:20:02]} {[%emt 00:00:12]} Nc6
{[%clk 00:19:12]} {[%emt 00:00:25]} 5. Nf3 {[%clk 00:19:58]} {[%emt 00:00:08]}
b6 {[%clk 00:19:11]} {[%emt 00:00:07]} 6. Nbd2 {[%clk 00:19:41]} {[%emt
00:00:22]} Bb7 {[%clk 00:18:53]} {[%emt 00:00:23]} 7. Bd3 {[%clk 00:19:33]}
{[%emt 00:00:13]} d5 {[%clk 00:18:26]} {[%emt 00:00:32]} 8. O-O {[%clk
00:19:23]} {[%emt 00:00:14]} cxd4 {[%clk 00:17:52]} {[%emt 00:00:40]} 9. exd4
{[%clk 00:19:14]} {[%emt 00:00:14]} Be7 {[%clk 00:17:50]} {[%emt 00:00:06]} 10.
Ne5 {[%clk 00:18:53]} {[%emt 00:00:26]} O-O {[%clk 00:16:52]} {[%emt 00:01:04]}
11. Qf3 {[%clk 00:17:36]} {[%emt 00:01:26]} h6 {[%clk 00:14:53]} {[%emt
00:02:09]} 12. Rac1 {[%clk 00:16:40]} {[%emt 00:01:01]} Nd7 {[%clk 00:13:52]}
{[%emt 00:01:07]} 13. Qg3 {[%clk 00:16:01]} {[%emt 00:00:44]} g5 {[%clk
00:12:18]} {[%emt 00:01:39]} 14. h4 {[%clk 00:13:05]} {[%emt 00:03:01]} Ndxe5
{[%clk 00:10:16]} {[%emt 00:02:07]} 15. dxe5 {[%clk 00:13:04]} {[%emt
00:00:06]} Kh8 {[%clk 00:09:33]} {[%emt 00:00:47]} 16. hxg5 {[%clk 00:12:24]}
{[%emt 00:00:46]} Bxg5 {[%clk 00:09:14]} {[%emt 00:00:24]} 17. Nf3 {[%clk
00:10:14]} {[%emt 00:02:14]} Rg8 {[%clk 00:05:35]} {[%emt 00:03:44]} 18. Bxg5
{[%clk 00:06:39]} {[%emt 00:03:41]} hxg5 {[%clk 00:05:07]} {[%emt 00:00:32]} 19.
Qh3+ {[%clk 00:06:10]} {[%emt 00:00:34]} Kg7 {[%clk 00:05:00]} {[%emt
00:00:12]} 20. Qh5 {[%clk 00:04:59]} {[%emt 00:01:16]} Kf8 {[%emt 00:00:56]} 21.
Bb1 {[%clk 00:04:00]} {[%emt 00:01:03]} Ke8 {[%clk 00:03:12]} {[%emt 00:01:03]}
22. c4 {[%clk 00:03:35]} {[%emt 00:00:29]} g4 {[%clk 00:02:11]} {[%emt
00:01:06]} 23. Qh7 {[%clk 00:02:50]} {[%emt 00:00:50]} Ne7 {[%clk 00:01:23]}
{[%emt 00:00:53]} 24. Nh2 {[%clk 00:01:36]} {[%emt 00:01:19]} Kd7 {[%clk
00:01:20]} {[%emt 00:00:08]} 25. cxd5 {[%clk 00:01:12]} {[%emt 00:00:29]} Bxd5
{[%clk 00:01:23]} {[%emt 00:00:03]} 26. Qd3 {[%clk 00:00:54]} {[%emt 00:00:22]}
Nc6 {[%clk 00:00:48]} {[%emt 00:00:41]} 27. Qg3 {[%clk 00:00:27]} {[%emt
00:00:32]} Qg5 {[%clk 00:00:39]} {[%emt 00:00:13]} 28. Rfd1 {[%clk 00:00:13]}
{[%emt 00:00:19]} Nxe5 {[%clk 00:00:33]} {[%emt 00:00:12]} 29. Be4 {[%clk
00:00:15]} {[%emt 00:00:03]} Ke7 {[%clk 00:00:28]} {[%emt 00:00:10]} 30. Rc7+
{[%clk 00:00:18]} {[%emt 00:00:02]} Kf6 {[%clk 00:00:22]} {[%emt 00:00:10]} 31.
Bxd5 {[%clk 00:00:18]} {[%emt 00:00:05]} exd5 {[%clk 00:00:26]} {[%emt
00:00:01]} 32. Re1 {[%clk 00:00:13]} {[%emt 00:00:10]} Rac8 {[%clk 00:00:13]}
{[%emt 00:00:18]} 33. Rc3 {[%clk 00:00:12]} {[%emt 00:00:07]} Rxc3 {[%clk
00:00:10]} {[%emt 00:00:08]} 34. bxc3 {[%clk 00:00:16]} {[%emt 00:00:01]} Re8
{[%clk 00:00:12]} {[%emt 00:00:02]} 35. Nxg4+ {[%clk 00:00:12]} {[%emt
00:00:08]} Nxg4 {[%clk 00:00:08]} {[%emt 00:00:09]} 36. Rxe8 {[%clk 00:00:16]}
{[%emt 00:00:01]} Qc1+ {[%clk 00:00:10]} {[%emt 00:00:03]} 0-1

[Event "MČR juniorů a juniorek v rapid šachu 2023"]
[Site "Czech Republic"]
[Date "2023.09.24"]
[Round "9.30"]
[White "Halama, Tomas"]
[Black "Hosova, Stella"]
[Result "1-0"]
[TimeControl "20 min + 5 sec per move"]
[WhiteFideId "397970"]
[BlackFideId "23710489"]
[WhiteElo "1306"]
[BlackElo "1164"]

1. c4 {[%clk 00:20:09]} e5 {[%clk 00:20:07]} {[%emt 00:00:04]} 2. Nc3 {[%clk
00:20:12]} Nf6 {[%clk 00:20:05]} {[%emt 00:00:07]} 3. g3 {[%clk 00:20:14]}
{[%emt 00:00:02]} Nc6 {[%clk 00:20:02]} {[%emt 00:00:10]} 4. Bg2 {[%clk
00:20:13]} {[%emt 00:00:04]} d6 {[%clk 00:20:01]} {[%emt 00:00:07]} 5. e3
{[%clk 00:20:10]} {[%emt 00:00:08]} Be6 {[%clk 00:20:02]} {[%emt 00:00:05]} 6.
d3 {[%clk 00:20:11]} {[%emt 00:00:03]} g6 {[%clk 00:19:58]} {[%emt 00:00:09]} 7.
Nge2 {[%clk 00:20:13]} {[%emt 00:00:02]} Bg7 {[%clk 00:20:01]} {[%emt
00:00:03]} 8. b3 {[%clk 00:20:09]} {[%emt 00:00:08]} O-O {[%clk 00:19:46]}
{[%emt 00:00:21]} 9. O-O {[%clk 00:20:09]} {[%emt 00:00:03]} Qd7 {[%clk
00:19:45]} {[%emt 00:00:08]} 10. Bb2 {[%clk 00:20:09]} {[%emt 00:00:05]} Bh3
{[%clk 00:19:43]} {[%emt 00:00:07]} 11. Qc2 {[%clk 00:20:03]} {[%emt 00:00:11]}
Qg4 {[%clk 00:19:01]} {[%emt 00:00:47]} 12. f3 {[%clk 00:18:57]} {[%emt
00:01:11]} Qh5 {[%clk 00:18:57]} {[%emt 00:00:09]} 13. Rf2 {[%clk 00:15:43]}
{[%emt 00:03:18]} Bh6 {[%clk 00:18:54]} {[%emt 00:00:08]} 14. f4 {[%clk
00:14:57]} {[%emt 00:00:52]} Ng4 {[%clk 00:18:54]} {[%emt 00:00:05]} 15. Bf3
{[%clk 00:14:34]} {[%emt 00:00:28]} exf4 {[%clk 00:18:24]} {[%emt 00:00:35]} 16.
Nxf4 {[%clk 00:14:25]} {[%emt 00:00:14]} Qf5 {[%clk 00:17:46]} {[%emt
00:00:41]} 17. Bxg4 {[%clk 00:13:31]} {[%emt 00:01:01]} Qxg4 {[%clk 00:17:48]}
{[%emt 00:00:02]} 18. Nxh3 {[%clk 00:13:28]} {[%emt 00:00:09]} Qxh3 {[%clk
00:16:26]} {[%emt 00:01:27]} 19. Qd2 {[%clk 00:13:12]} {[%emt 00:00:20]} Rae8
{[%clk 00:16:23]} {[%emt 00:00:08]} 20. Ne4 {[%clk 00:12:55]} {[%emt 00:00:22]}
f5 {[%clk 00:16:02]} {[%emt 00:00:27]} 21. Qc3 {[%clk 00:12:24]} {[%emt
00:00:36]} fxe4 {[%clk 00:15:46]} {[%emt 00:00:22]} 22. Qh8# {[%emt 00:00:06]}
1-0